[Event "Elitserien 2019/2020, round 1-3"]
[Site "Uppsala University, Gamla torget, Uppsala, Sweden"]
[Date "2019.10.18"]
[Round "1.5"]
[White "Hedman, Erik"]
[Black "Schneider, Stefan"]
[Result "0-1"]
[TimeControl "90 minutes for 40 moves + 30 minutes for the rest of the game + 30 seconds per move from move one."]
[WhiteTitle "IM"]
[BlackTitle "IM"]
[WhiteFideId "1702351"]
[BlackFideId "1703013"]
[WhiteElo "2371"]
[BlackElo "2378"]

1. d4 {[%clk 01:30:50]} {[%emt 00:00:08]} Nf6 {[%clk 01:30:32]} {[%emt
00:00:30]} 2. c4 {[%clk 01:31:05]} {[%emt 00:00:15]} e6 {[%clk 01:30:39]}
{[%emt 00:00:22]} 3. Nf3 {[%clk 01:31:29]} {[%emt 00:00:06]} Bb4+ {[%clk
01:30:46]} {[%emt 00:00:22]} 4. Nbd2 {[%clk 01:31:55]} {[%emt 00:00:05]} O-O
{[%clk 01:30:39]} {[%emt 00:00:37]} 5. a3 {[%clk 01:32:03]} {[%emt 00:00:23]}
Be7 {[%clk 01:29:57]} {[%emt 00:01:11]} 6. e4 {[%clk 01:32:26]} {[%emt
00:00:06]} d6 {[%clk 01:29:35]} {[%emt 00:00:53]} 7. Bd3 {[%clk 01:30:51]}
{[%emt 00:02:05]} e5 {[%clk 01:27:42]} {[%emt 00:02:23]} 8. d5 {[%clk
01:31:07]} {[%emt 00:00:15]} a5 {[%clk 01:26:45]} {[%emt 00:01:27]} 9. b3
{[%clk 01:29:14]} {[%emt 00:02:22]} Nbd7 {[%clk 01:18:26]} {[%emt 00:08:49]} 10.
O-O {[%clk 01:28:23]} {[%emt 00:01:21]} Nh5 {[%clk 01:13:54]} {[%emt 00:05:02]}
11. Bc2 {[%clk 01:27:46]} {[%emt 00:01:05]} g6 {[%clk 01:02:29]} {[%emt
00:11:57]} 12. Bb2 {[%clk 01:27:40]} {[%emt 00:00:36]} f6 {[%clk 00:51:24]}
{[%emt 00:11:35]} 13. b4 {[%clk 01:22:20]} {[%emt 00:05:51]} Rf7 {[%clk
00:44:55]} {[%emt 00:06:59]} 14. c5 {[%clk 01:06:55]} {[%emt 00:15:54]} dxc5
{[%clk 00:29:32]} {[%emt 00:15:54]} 15. d6 {[%clk 01:02:12]} {[%emt 00:05:13]}
Bxd6 {[%clk 00:28:50]} {[%emt 00:01:11]} 16. Bb3 {[%clk 01:01:44]} {[%emt
00:00:59]} Qf8 {[%clk 00:18:38]} {[%emt 00:10:42]} 17. Nc4 {[%clk 00:52:25]}
{[%emt 00:09:49]} a4 {[%clk 00:16:18]} {[%emt 00:02:50]} 18. Nxd6 {[%clk
00:23:49]} {[%emt 00:29:06]} axb3 {[%clk 00:15:58]} {[%emt 00:00:50]} 19. Nxf7
{[%clk 00:24:14]} {[%emt 00:00:06]} Qxf7 {[%clk 00:16:06]} {[%emt 00:00:21]} 20.
bxc5 {[%clk 00:20:21]} {[%emt 00:04:23]} Nxc5 {[%clk 00:16:30]} {[%emt
00:00:06]} 21. Qd8+ {[%clk 00:15:20]} {[%emt 00:05:32]} Qf8 {[%clk 00:08:06]}
{[%emt 00:08:54]} 22. Qxc7 {[%clk 00:14:40]} {[%emt 00:01:09]} Nf4 {[%clk
00:07:24]} {[%emt 00:01:12]} 23. Rfd1 {[%clk 00:08:48]} {[%emt 00:06:23]} Bg4
{[%clk 00:06:12]} {[%emt 00:01:41]} 24. Ng5 fxg5 {[%clk 00:05:15]} 25. Qxe5
{[%clk 00:05:06]} {[%emt 00:00:04]} Bxd1 {[%clk 00:03:35]} {[%emt 00:02:10]} 26.
Rxd1 {[%clk 00:04:52]} {[%emt 00:00:44]} Nfd3 {[%clk 00:01:58]} {[%emt
00:02:05]} 27. Qh8+ {[%clk 00:04:33]} {[%emt 00:00:51]} Kf7 {[%clk 00:02:27]}
{[%emt 00:00:02]} 28. Qxh7+ {[%clk 00:04:48]} {[%emt 00:00:14]} Ke8 {[%clk
00:02:25]} {[%emt 00:00:32]} 29. Bd4 {[%clk 00:02:59]} {[%emt 00:02:19]} Ra6
{[%clk 00:02:39]} {[%emt 00:00:17]} 30. Qh3 {[%clk 00:01:22]} {[%emt 00:02:07]}
b2 {[%clk 00:01:33]} {[%emt 00:01:35]} 31. Bxc5 {[%clk 00:01:22]} {[%emt
00:00:30]} Qxc5 {[%clk 00:01:00]} {[%emt 00:01:04]} 32. Qh8+ {[%clk 00:00:42]}
{[%emt 00:01:10]} Qf8 {[%clk 00:01:15]} {[%emt 00:00:15]} 33. Qd4 {[%clk
00:00:58]} {[%emt 00:00:14]} Qd6 {[%clk 00:01:03]} {[%emt 00:00:39]} 34. Qh8+
{[%clk 00:01:05]} {[%emt 00:00:26]} Qf8 {[%clk 00:01:19]} {[%emt 00:00:13]} 35.
Qd4 {[%clk 00:01:32]} {[%emt 00:00:04]} Rd6 {[%clk 00:01:25]} {[%emt 00:00:23]}
36. Qa4+ {[%clk 00:01:45]} {[%emt 00:00:17]} Ke7 {[%clk 00:01:17]} {[%emt
00:00:38]} 37. f3 {[%clk 00:01:36]} {[%emt 00:00:39]} Qf6 {[%clk 00:01:07]}
{[%emt 00:00:38]} 0-1

[Event "Elitserien 2019/2020, round 1-3"]
[Site "Uppsala University, Gamla torget, Uppsala, Sweden"]
[Date "2019.10.18"]
[Round "1.6"]
[White "Haubro, Martin"]
[Black "Barkhagen, Jonas"]
[Result "0-1"]
[TimeControl "90 minutes for 40 moves + 30 minutes for the rest of the game + 30 seconds per move from move one."]
[WhiteTitle "IM"]
[BlackTitle "IM"]
[WhiteFideId "1414291"]
[BlackFideId "1700855"]
[WhiteElo "2343"]
[BlackElo "2427"]

1. e4 {[%clk 01:30:57]} {[%emt 00:00:01]} c5 {[%clk 01:30:36]} {[%emt
00:00:25]} 2. Nf3 {[%clk 01:31:22]} {[%emt 00:00:05]} d6 {[%clk 01:31:01]}
{[%emt 00:00:04]} 3. d4 {[%clk 01:31:48]} {[%emt 00:00:05]} cxd4 {[%clk
01:31:26]} {[%emt 00:00:05]} 4. Nxd4 {[%clk 01:32:15]} {[%emt 00:00:03]} Nf6
{[%clk 01:31:50]} {[%emt 00:00:06]} 5. Nc3 {[%clk 01:32:42]} {[%emt 00:00:03]}
Nc6 {[%clk 01:32:10]} {[%emt 00:00:10]} 6. Bg5 {[%clk 01:33:06]} {[%emt
00:00:07]} e6 {[%clk 01:32:34]} {[%emt 00:00:04]} 7. Qd2 {[%clk 01:33:06]}
{[%emt 00:00:30]} a6 {[%clk 01:32:59]} {[%emt 00:00:06]} 8. O-O-O {[%clk
01:31:56]} {[%emt 00:01:39]} Bd7 {[%clk 01:33:24]} {[%emt 00:00:05]} 9. f4
{[%clk 01:29:34]} {[%emt 00:02:53]} b5 {[%clk 01:32:47]} {[%emt 00:01:07]} 10.
Nf3 {[%clk 01:28:25]} {[%emt 00:01:38]} b4 {[%clk 01:29:07]} {[%emt 00:04:11]}
11. Bxf6 {[%clk 01:22:51]} {[%emt 00:06:05]} gxf6 {[%clk 01:27:27]} {[%emt
00:02:09]} 12. Ne2 {[%clk 01:23:10]} {[%emt 00:00:10]} Qb6 {[%clk 01:21:42]}
{[%emt 00:06:14]} 13. Kb1 {[%clk 01:20:24]} {[%emt 00:03:17]} a5 {[%clk
01:18:44]} {[%emt 00:03:28]} 14. f5 {[%clk 01:19:33]} {[%emt 00:01:22]} e5
{[%clk 01:07:13]} {[%emt 00:12:01]} 15. g4 {[%clk 01:15:30]} {[%emt 00:04:33]}
Qf2 {[%clk 00:51:24]} {[%emt 00:16:17]} 16. Qd3 {[%clk 01:07:49]} {[%emt
00:08:13]} b3 {[%clk 00:49:32]} {[%emt 00:02:22]} 17. Qxb3 {[%clk 01:00:44]}
{[%emt 00:07:34]} Rb8 {[%clk 00:47:21]} {[%emt 00:02:42]} 18. Qc3 {[%clk
01:00:45]} {[%emt 00:00:29]} Nb4 {[%clk 00:37:45]} {[%emt 00:10:05]} 19. Rd2
{[%clk 00:57:43]} {[%emt 00:03:32]} Qb6 {[%clk 00:25:32]} {[%emt 00:12:43]} 20.
a3 {[%clk 00:53:59]} {[%emt 00:04:14]} Na6 {[%clk 00:18:17]} {[%emt 00:07:45]}
21. Ng3 {[%clk 00:45:50]} {[%emt 00:08:39]} Nc5 {[%clk 00:17:49]} {[%emt
00:00:58]} 22. b3 {[%clk 00:22:57]} {[%emt 00:23:24]} Na4 {[%clk 00:16:21]}
{[%emt 00:01:57]} 23. Qa1 {[%clk 00:23:21]} {[%emt 00:00:07]} Qc5 {[%clk
00:15:36]} {[%emt 00:01:14]} 24. Bd3 {[%clk 00:11:54]} {[%emt 00:11:57]} Bh6
{[%clk 00:08:58]} {[%emt 00:07:08]} 25. Rdd1 {[%clk 00:03:56]} {[%emt
00:08:28]} Ke7 {[%clk 00:04:47]} {[%emt 00:04:40]} 26. h4 {[%clk 00:02:20]}
{[%emt 00:02:06]} Nc3+ {[%clk 00:03:47]} {[%emt 00:01:30]} 27. Kb2 {[%clk
00:02:45]} {[%emt 00:00:05]} a4 {[%clk 00:03:51]} {[%emt 00:00:27]} 28. g5
{[%clk 00:01:36]} {[%emt 00:01:39]} axb3 {[%clk 00:04:06]} {[%emt 00:00:15]} 29.
gxf6+ {[%clk 00:01:00]} {[%emt 00:01:06]} Kxf6 {[%clk 00:04:06]} {[%emt
00:00:30]} 30. Nh5+ {[%clk 00:01:28]} {[%emt 00:00:02]} Ke7 {[%clk 00:04:25]}
{[%emt 00:00:10]} 31. f6+ {[%clk 00:01:54]} {[%emt 00:00:04]} Ke6 {[%clk
00:01:28]} {[%emt 00:03:26]} 0-1

[Event "Elitserien 2019/2020, round 1-3"]
[Site "Uppsala University, Gamla torget, Uppsala, Sweden"]
[Date "2019.10.18"]
[Round "1.7"]
[White "Karlsson, Lars"]
[Black "Helgason, Reynir"]
[Result "1/2-1/2"]
[TimeControl "90 minutes for 40 moves + 30 minutes for the rest of the game + 30 seconds per move from move one."]
[WhiteTitle "GM"]
[BlackTitle "FM"]
[WhiteFideId "1700057"]
[BlackFideId "1700600"]
[WhiteElo "2449"]
[BlackElo "2253"]

1. f4 {[%clk 01:30:51]} {[%emt 00:00:09]} d5 {[%clk 01:29:11]} {[%emt
00:01:48]} 2. Nf3 {[%clk 01:31:16]} {[%emt 00:00:05]} c6 {[%clk 01:29:32]}
{[%emt 00:00:10]} 3. b3 {[%clk 01:31:33]} {[%emt 00:00:12]} Nf6 {[%clk
01:22:47]} {[%emt 00:07:15]} 4. Bb2 {[%clk 01:32:02]} {[%emt 00:00:02]} g6
{[%clk 01:23:05]} {[%emt 00:00:11]} 5. g3 {[%clk 01:32:19]} {[%emt 00:00:14]}
Bg7 {[%clk 01:22:38]} {[%emt 00:00:57]} 6. Bg2 {[%clk 01:32:47]} {[%emt
00:00:02]} Qb6 {[%clk 01:20:37]} {[%emt 00:02:30]} 7. e3 {[%clk 01:32:38]}
{[%emt 00:00:39]} Bg4 {[%clk 01:20:34]} {[%emt 00:00:33]} 8. Qc1 {[%clk
01:28:48]} {[%emt 00:04:21]} Bxf3 {[%clk 01:15:26]} {[%emt 00:05:39]} 9. Bxf3
{[%clk 01:26:58]} {[%emt 00:02:19]} O-O {[%clk 01:15:16]} {[%emt 00:00:40]} 10.
c4 {[%clk 01:24:14]} {[%emt 00:03:13]} Na6 {[%clk 00:58:57]} {[%emt 00:16:49]}
11. O-O {[%clk 01:08:54]} {[%emt 00:15:51]} Rfd8 {[%clk 00:51:24]} {[%emt
00:08:02]} 12. cxd5 {[%clk 01:07:14]} {[%emt 00:02:11]} Nxd5 {[%clk 00:46:38]}
{[%emt 00:05:15]} 13. Bxg7 {[%clk 01:07:33]} {[%emt 00:00:11]} Kxg7 {[%clk
00:47:06]} {[%emt 00:00:02]} 14. Nc3 {[%clk 01:07:23]} {[%emt 00:00:40]} Nab4
{[%clk 00:41:39]} {[%emt 00:05:57]} 15. a3 {[%clk 01:06:46]} {[%emt 00:01:08]}
Na6 {[%clk 00:37:45]} {[%emt 00:04:23]} 16. b4 {[%clk 01:06:13]} {[%emt
00:01:03]} Kg8 {[%clk 00:37:44]} {[%emt 00:00:32]} 17. d4 {[%clk 01:05:12]}
{[%emt 00:01:30]} Nxc3 {[%clk 00:37:23]} {[%emt 00:00:52]} 18. Qxc3 {[%clk
01:05:28]} {[%emt 00:00:12]} Nc7 {[%emt 00:00:07]} 19. Qc5 {[%clk 01:02:39]}
{[%emt 00:03:16]} Nd5 {[%clk 00:34:52]} {[%emt 00:03:28]} 20. Rfe1 {[%clk
01:02:46]} {[%emt 00:00:24]} Qxc5 {[%clk 00:32:08]} {[%emt 00:03:14]} 21. bxc5
{[%clk 01:03:10]} {[%emt 00:00:06]} b5 {[%clk 00:31:26]} {[%emt 00:01:11]} 22.
e4 {[%clk 01:00:35]} {[%emt 00:03:06]} Nc7 {[%clk 00:28:36]} {[%emt 00:03:20]}
23. Red1 {[%clk 00:55:03]} {[%emt 00:06:01]} Ne6 {[%clk 00:14:02]} {[%emt
00:15:05]} 24. d5 {[%clk 00:54:30]} {[%emt 00:01:03]} cxd5 {[%clk 00:14:23]}
{[%emt 00:00:08]} 25. c6 {[%clk 00:53:01]} {[%emt 00:01:59]} dxe4 {[%clk
00:12:36]} {[%emt 00:02:18]} 26. Bxe4 {[%clk 00:53:22]} {[%emt 00:00:09]} Rac8
{[%clk 00:12:42]} {[%emt 00:00:23]} 27. Rac1 {[%clk 00:50:34]} {[%emt
00:03:18]} Rd6 {[%clk 00:09:05]} {[%emt 00:04:07]} 28. Rxd6 {[%clk 00:31:23]}
{[%emt 00:19:41]} exd6 {[%emt 00:09:11]} 1/2-1/2

[Event "Elitserien 2019/2020, round 1-3"]
[Site "Uppsala University, Gamla torget, Uppsala, Sweden"]
[Date "2019.10.18"]
[Round "1.8"]
[White "Penalver, Osmani"]
[Black "Bator, Robert"]
[Result "0-1"]
[TimeControl "90 minutes for 40 moves + 30 minutes for the rest of the game + 30 seconds per move from move one."]
[BlackTitle "IM"]
[WhiteFideId "1704516"]
[BlackFideId "1700405"]
[WhiteElo "2224"]
[BlackElo "2358"]

1. d4 {[%clk 01:30:36]} {[%emt 00:00:22]} d5 {[%clk 01:30:26]} {[%emt
00:00:35]} 2. c4 {[%clk 01:30:57]} {[%emt 00:00:09]} c6 {[%clk 01:30:46]}
{[%emt 00:00:11]} 3. Nf3 {[%clk 01:31:05]} {[%emt 00:00:21]} Nf6 {[%clk
01:30:59]} {[%emt 00:00:17]} 4. e3 {[%clk 01:30:41]} {[%emt 00:00:54]} Bf5
{[%clk 01:30:05]} {[%emt 00:01:24]} 5. Nc3 {[%clk 01:31:02]} {[%emt 00:00:09]}
a6 {[%clk 01:29:00]} {[%emt 00:01:36]} 6. Qb3 {[%clk 01:28:09]} {[%emt
00:03:22]} Ra7 {[%clk 01:23:10]} {[%emt 00:06:21]} 7. cxd5 {[%clk 01:19:19]}
{[%emt 00:09:20]} cxd5 {[%clk 01:23:26]} {[%emt 00:00:14]} 8. Qa4+ {[%clk
01:18:45]} {[%emt 00:01:04]} Bd7 {[%clk 01:18:46]} {[%emt 00:05:10]} 9. Qb3
{[%clk 01:15:52]} {[%emt 00:03:22]} e6 {[%clk 01:16:47]} {[%emt 00:02:29]} 10.
Ne5 {[%clk 01:15:22]} {[%emt 00:01:01]} Nc6 {[%clk 01:15:55]} {[%emt 00:01:21]}
11. Nxc6 {[%clk 01:11:52]} {[%emt 00:04:01]} bxc6 {[%clk 01:10:38]} {[%emt
00:05:47]} 12. Be2 {[%clk 01:10:50]} {[%emt 00:01:31]} c5 {[%clk 01:10:15]}
{[%emt 00:00:53]} 13. dxc5 {[%clk 01:10:00]} {[%emt 00:01:21]} Bxc5 {[%clk
01:10:27]} {[%emt 00:00:18]} 14. O-O {[%clk 01:09:07]} {[%emt 00:01:21]} O-O
{[%clk 01:03:06]} {[%emt 00:07:52]} 15. Rd1 {[%clk 01:05:45]} {[%emt 00:03:53]}
Qa8 {[%clk 01:00:37]} {[%emt 00:02:58]} 16. Bf3 {[%clk 00:53:42]} {[%emt
00:12:33]} Rc8 {[%clk 00:54:09]} {[%emt 00:06:58]} 17. a3 {[%clk 00:50:10]}
{[%emt 00:04:02]} Bc6 {[%clk 00:47:55]} {[%emt 00:06:44]} 18. Bd2 {[%clk
00:42:26]} {[%emt 00:08:15]} Bd6 {[%clk 00:43:12]} {[%emt 00:05:13]} 19. Be1
{[%clk 00:40:49]} {[%emt 00:02:07]} Rb7 {[%clk 00:43:04]} {[%emt 00:00:37]} 20.
Qa2 {[%clk 00:37:11]} {[%emt 00:04:07]} Qb8 {[%clk 00:42:55]} {[%emt 00:00:39]}
21. b4 {[%clk 00:37:12]} {[%emt 00:00:30]} Bxh2+ {[%clk 00:41:14]} {[%emt
00:02:12]} 22. Kh1 {[%clk 00:36:54]} {[%emt 00:00:48]} Be5 {[%clk 00:40:33]}
{[%emt 00:01:11]} 23. Rac1 {[%clk 00:36:53]} {[%emt 00:00:31]} Rbc7 {[%clk
00:35:44]} {[%emt 00:05:19]} 24. Qb3 {[%clk 00:33:51]} {[%emt 00:03:32]} g5
{[%clk 00:33:17]} {[%emt 00:02:56]} 25. g3 {[%clk 00:28:34]} {[%emt 00:05:48]}
Bb5 {[%clk 00:27:22]} {[%emt 00:06:25]} 26. Kg1 {[%clk 00:22:36]} {[%emt
00:06:27]} h5 {[%clk 00:21:25]} {[%emt 00:06:27]} 27. a4 {[%clk 00:18:29]}
{[%emt 00:04:37]} Bc4 {[%clk 00:20:04]} {[%emt 00:01:51]} 28. Qa3 {[%clk
00:18:23]} {[%emt 00:00:37]} Bd6 {[%clk 00:18:32]} {[%emt 00:02:02]} 29. Nb1
{[%clk 00:17:02]} {[%emt 00:01:51]} g4 {[%clk 00:15:37]} {[%emt 00:03:25]} 30.
Qb2 {[%clk 00:12:21]} {[%emt 00:05:10]} Nd7 {[%clk 00:13:33]} {[%emt 00:02:34]}
31. Be2 {[%clk 00:06:25]} {[%emt 00:06:26]} Ne5 {[%clk 00:05:54]} {[%emt
00:08:10]} 32. Bc3 {[%clk 00:03:49]} {[%emt 00:03:06]} Bxe2 {[%clk 00:05:01]}
{[%emt 00:01:22]} 33. Qxe2 {[%clk 00:04:02]} {[%emt 00:00:17]} Nf3+ {[%clk
00:04:52]} {[%emt 00:00:39]} 34. Kg2 {[%clk 00:04:19]} {[%emt 00:00:13]} Bxb4
{[%clk 00:03:38]} {[%emt 00:01:45]} 35. Bb2 {[%clk 00:02:49]} {[%emt 00:02:00]}
Rxc1 {[%clk 00:03:58]} {[%emt 00:00:09]} 36. Bxc1 {[%clk 00:02:52]} {[%emt
00:00:27]} Qb7 {[%clk 00:02:02]} {[%emt 00:02:27]} 37. Bb2 {[%clk 00:02:06]}
{[%emt 00:01:16]} d4 {[%clk 00:02:09]} {[%emt 00:00:22]} 38. e4 {[%clk
00:02:31]} {[%emt 00:00:04]} Bc3 {[%clk 00:02:13]} {[%emt 00:00:27]} 39. Ba3
{[%clk 00:02:21]} {[%emt 00:00:40]} Ng5 {[%clk 00:02:08]} {[%emt 00:00:35]} 40.
Nxc3 {[%clk 00:01:41]} {[%emt 00:01:10]} dxc3 {[%clk 00:01:52]} {[%emt
00:00:46]} 41. Rd4 {[%clk 00:01:16]} {[%emt 00:00:55]} Qb1 {[%clk 00:00:51]}
{[%emt 00:01:30]} 42. Qe3 {[%clk 00:22:55]} {[%emt 00:08:52]} Nf3 {[%clk
00:29:23]} {[%emt 00:01:59]} 43. Bc1 {[%clk 00:23:06]} {[%emt 00:00:18]} Qb6
{[%clk 00:28:24]} {[%emt 00:01:29]} 44. Rc4 {[%clk 00:20:58]} {[%emt 00:02:38]}
Qd8 {[%clk 00:25:07]} {[%emt 00:03:46]} 45. Qxc3 {[%clk 00:18:02]} {[%emt
00:03:27]} Rxc4 {[%clk 00:25:23]} {[%emt 00:00:14]} 46. Qxc4 {[%clk 00:18:30]}
{[%emt 00:00:02]} Qd1 {[%clk 00:25:22]} {[%emt 00:00:30]} 47. Qf1 {[%clk
00:15:32]} {[%emt 00:03:28]} Ne1+ {[%clk 00:24:53]} {[%emt 00:01:01]} 0-1

[Event "Elitserien 2019/2020, round 1-3"]
[Site "Uppsala University, Gamla torget, Uppsala, Sweden"]
[Date "2019.10.18"]
[Round "1.9"]
[White "Solodovnichenko, Yuri"]
[Black "Suarez Garcia, Carlos"]
[Result "1-0"]
[TimeControl "90 minutes for 40 moves + 30 minutes for the rest of the game + 30 seconds per move from move one."]
[WhiteTitle "GM"]
[BlackTitle "IM"]
[WhiteFideId "14104369"]
[BlackFideId "22230858"]
[WhiteElo "2568"]
[BlackElo "2437"]

1. e4 {[%clk 01:28:04]} {[%emt 00:02:55]} c5 {[%clk 01:30:25]} {[%emt
00:00:36]} 2. Nf3 {[%clk 01:27:55]} {[%emt 00:00:39]} e6 {[%clk 01:30:46]}
{[%emt 00:00:08]} 3. d4 {[%clk 01:28:01]} {[%emt 00:00:25]} cxd4 {[%clk
01:30:57]} {[%emt 00:00:19]} 4. Nxd4 {[%clk 01:28:25]} {[%emt 00:00:06]} Nc6
{[%clk 01:31:21]} {[%emt 00:00:06]} 5. Nc3 {[%clk 01:28:07]} {[%emt 00:00:48]}
Qc7 {[%clk 01:31:36]} {[%emt 00:00:16]} 6. Be3 {[%clk 01:28:12]} {[%emt
00:00:24]} a6 {[%clk 01:31:31]} {[%emt 00:00:35]} 7. Qd2 {[%clk 01:26:08]}
{[%emt 00:02:34]} Nf6 {[%clk 01:31:02]} {[%emt 00:00:59]} 8. O-O-O {[%clk
01:25:50]} {[%emt 00:00:47]} Bb4 {[%clk 01:30:43]} {[%emt 00:00:49]} 9. f3
{[%clk 01:26:12]} {[%emt 00:00:09]} O-O {[%clk 01:30:19]} {[%emt 00:00:54]} 10.
Kb1 {[%clk 01:25:14]} {[%emt 00:01:28]} Ne5 {[%clk 01:19:16]} {[%emt 00:11:32]}
11. g4 {[%clk 01:10:12]} {[%emt 00:15:33]} Bxc3 {[%clk 01:17:41]} {[%emt
00:02:05]} 12. Qxc3 {[%clk 01:10:35]} {[%emt 00:00:06]} Qxc3 {[%clk 01:18:05]}
{[%emt 00:00:06]} 13. bxc3 {[%clk 01:11:00]} {[%emt 00:00:05]} b5 {[%clk
01:18:34]} {[%emt 00:00:02]} 14. Bf4 {[%clk 01:07:50]} {[%emt 00:03:39]} Nc4
{[%clk 01:08:55]} {[%emt 00:10:09]} 15. Bxc4 {[%clk 01:07:01]} {[%emt
00:01:19]} bxc4 {[%clk 01:09:18]} {[%emt 00:00:08]} 16. Bd6 {[%clk 01:04:46]}
{[%emt 00:02:43]} Rd8 {[%clk 01:00:36]} {[%emt 00:09:13]} 17. g5 {[%clk
00:59:35]} {[%emt 00:05:41]} Nh5 {[%clk 01:01:00]} {[%emt 00:00:07]} 18. Ka1
{[%clk 00:55:22]} {[%emt 00:04:43]} f6 {[%clk 00:54:51]} {[%emt 00:06:40]} 19.
gxf6 {[%clk 00:53:04]} {[%emt 00:02:47]} Nxf6 {[%clk 00:54:57]} {[%emt
00:00:24]} 20. Rb1 {[%clk 00:51:15]} {[%emt 00:02:17]} Kf7 {[%clk 00:52:51]}
{[%emt 00:02:38]} 21. Rb6 {[%clk 00:48:17]} {[%emt 00:03:26]} Ne8 {[%clk
00:51:45]} {[%emt 00:01:38]} 22. Bg3 {[%clk 00:36:24]} {[%emt 00:12:22]} d6
{[%clk 00:42:32]} {[%emt 00:09:44]} 23. Rhb1 {[%clk 00:20:43]} {[%emt
00:16:10]} e5 {[%clk 00:38:26]} {[%emt 00:04:36]} 24. Nc6 {[%clk 00:20:23]}
{[%emt 00:00:51]} Rd7 {[%clk 00:38:53]} {[%emt 00:00:03]} 25. Na5 {[%clk
00:08:57]} {[%emt 00:11:55]} Rc7 {[%clk 00:31:19]} {[%emt 00:08:04]} 26. f4
{[%clk 00:09:24]} {[%emt 00:00:04]} Rc5 {[%clk 00:25:00]} {[%emt 00:06:49]} 27.
Nb7 {[%clk 00:08:43]} {[%emt 00:01:11]} exf4 {[%clk 00:19:07]} {[%emt
00:06:23]} 28. Bxf4 {[%clk 00:07:46]} {[%emt 00:01:26]} Bxb7 {[%clk 00:11:30]}
{[%emt 00:08:08]} 29. Rxb7+ {[%clk 00:08:11]} {[%emt 00:00:05]} Ke6 {[%clk
00:11:58]} {[%emt 00:00:01]} 30. R1b6 {[%clk 00:06:29]} {[%emt 00:02:12]} Rb5
{[%clk 00:11:30]} {[%emt 00:00:59]} 31. a4 {[%clk 00:02:40]} {[%emt 00:04:19]}
Rxb6 {[%clk 00:11:55]} {[%emt 00:00:05]} 32. Rxb6 {[%clk 00:03:07]} {[%emt
00:00:03]} Ra7 {[%clk 00:06:24]} {[%emt 00:06:01]} 33. Bg3 {[%clk 00:02:35]}
{[%emt 00:01:02]} g5 {[%clk 00:06:04]} {[%emt 00:00:49]} 34. e5 {[%clk
00:02:24]} {[%emt 00:00:42]} h5 {[%clk 00:06:31]} {[%emt 00:00:03]} 35. exd6
{[%clk 00:02:15]} {[%emt 00:00:39]} Rd7 {[%clk 00:06:43]} {[%emt 00:00:18]} 36.
Rxa6 {[%clk 00:01:21]} {[%emt 00:01:23]} h4 {[%clk 00:03:27]} {[%emt 00:03:46]}
37. Bf2 {[%clk 00:01:50]} {[%emt 00:00:01]} Rxd6 {[%clk 00:03:07]} {[%emt
00:00:51]} 38. Ra8 {[%clk 00:01:57]} {[%emt 00:00:21]} Nc7 {[%clk 00:01:11]}
{[%emt 00:02:27]} 39. Rg8 {[%clk 00:02:12]} {[%emt 00:00:14]} Ra6 {[%clk
00:00:37]} {[%emt 00:01:06]} 40. Rxg5 {[%clk 00:02:07]} {[%emt 00:00:34]} Rxa4+
{[%clk 00:01:01]} {[%emt 00:00:06]} 41. Kb2 {[%clk 00:02:30]} {[%emt 00:00:06]}
Nd5 {[%clk 00:28:51]} {[%emt 00:02:41]} 42. Rh5 {[%clk 00:29:16]} {[%emt
00:03:43]} Ra8 {[%clk 00:27:42]} {[%emt 00:01:39]} 43. Rxh4 {[%clk 00:27:38]}
{[%emt 00:02:09]} Rf8 {[%clk 00:26:51]} {[%emt 00:01:21]} 44. Bg3 {[%clk
00:27:23]} {[%emt 00:00:45]} Nb6 {[%clk 00:26:22]} {[%emt 00:00:58]} 45. Rh6+
{[%clk 00:26:23]} {[%emt 00:01:31]} Rf6 {[%clk 00:26:50]} {[%emt 00:00:02]} 46.
Rxf6+ {[%clk 00:26:46]} {[%emt 00:00:07]} Kxf6 {[%clk 00:27:18]} {[%emt
00:00:02]} 47. Ka3 {[%clk 00:26:47]} {[%emt 00:00:29]} Ke6 {[%clk 00:26:06]}
{[%emt 00:01:42]} 48. Kb4 {[%clk 00:26:50]} {[%emt 00:00:27]} Kd5 {[%clk
00:26:32]} {[%emt 00:00:05]} 49. h4 {[%clk 00:26:45]} {[%emt 00:00:34]} Nd7
{[%clk 00:26:50]} {[%emt 00:00:12]} 50. h5 {[%clk 00:26:58]} {[%emt 00:00:17]}
Nf6 {[%clk 00:27:16]} {[%emt 00:00:04]} 51. h6 {[%clk 00:27:22]} {[%emt
00:00:06]} Nh7 {[%clk 00:27:43]} {[%emt 00:00:03]} 52. Kb5 {[%clk 00:25:57]}
{[%emt 00:01:55]} Ng5 {[%clk 00:28:06]} {[%emt 00:00:08]} 53. Bh4 {[%clk
00:25:38]} {[%emt 00:00:48]} Nh7 {[%clk 00:28:32]} {[%emt 00:00:05]} 54. Kb6
{[%clk 00:26:03]} {[%emt 00:00:04]} Kd6 {[%clk 00:27:38]} {[%emt 00:01:24]} 55.
Bg3 {[%clk 00:26:28]} {[%emt 00:00:06]} Kd5 {[%clk 00:28:03]} {[%emt 00:00:04]}
56. Kc7 {[%clk 00:26:41]} {[%emt 00:00:17]} 1-0